[Event "Titled Tuesday Blitz May 24 Late 2022"]
[White "Gorodetzky, David"]
[Black "Kostiukov, Alexandr"]
[WhiteFideId "2813416"]
[BlackFideId "14108100"]
[WhiteElo "2494"]
[BlackElo "2202"]
[Result "1-0"]
[Round "03"]
[TimeControl "180+1"]
[Date "2022.05.24"]
[WhiteClock "0:01:47"]
[BlackClock "0:01:13"]

1. b3 {[%clk 0:02:55]}  g6 {[%clk 0:02:57]} 2. Bb2 {[%clk 0:02:56]}  Nf6 {[%clk 0:02:57]} 3. Nf3 {[%clk 0:02:57]}  Bg7 {[%clk 0:02:57]} 4. g3 {[%clk 0:02:58]}  O-O {[%clk 0:02:58]} 5. Bg2 {[%clk 0:02:58]}  c5 {[%clk 0:02:58]} 6. c4 {[%clk 0:02:58]}  Nc6 {[%clk 0:02:58]} 7. O-O {[%clk 0:02:58]}  d5 {[%clk 0:02:58]} 8. cxd5 {[%clk 0:02:59]}  Qxd5 {[%clk 0:02:58]} 9. Nc3 {[%clk 0:02:58]}  Qh5 {[%clk 0:02:58]} 10. Rc1 {[%clk 0:02:58]}  Bh3 {[%clk 0:02:55]} 11. d3 {[%clk 0:02:50]}  Rac8 {[%clk 0:02:51]} 12. Re1 {[%clk 0:02:40]}  Ng4 {[%clk 0:02:38]} 13. Na4 {[%clk 0:02:33]}  Nd4 {[%clk 0:02:26]} 14. Bxd4 {[%clk 0:02:16]}  cxd4 {[%clk 0:02:25]} 15. Rxc8 {[%clk 0:02:12]}  Rxc8 {[%clk 0:02:25]} 16. Qb1 {[%clk 0:02:12]}  Bxg2 {[%clk 0:02:22]} 17. Kxg2 {[%clk 0:02:12]}  b5 {[%clk 0:02:19]} 18. Nb2 {[%clk 0:02:10]}  Bh6 {[%clk 0:02:09]} 19. h3 {[%clk 0:02:04]}  Nf6 {[%clk 0:02:06]} 20. Nxd4 {[%clk 0:01:59]}  Qd5+ {[%clk 0:02:00]} 21. Nf3 {[%clk 0:01:59]}  e5 {[%clk 0:01:59]} 22. e4 {[%clk 0:01:59]}  Qc5 {[%clk 0:01:54]} 23. d4 {[%clk 0:01:56]}  exd4 {[%clk 0:01:52]} 24. Nd3 {[%clk 0:01:56]}  Qc3 {[%clk 0:01:48]} 25. g4 {[%clk 0:01:55]}  Bg7 {[%clk 0:01:28]} 26. Rc1 {[%clk 0:01:53]}  Nxe4 {[%clk 0:01:28]} 27. Rxc3 {[%clk 0:01:52]}  dxc3 {[%clk 0:01:25]} 28. Qc2 {[%clk 0:01:51]}  a5 {[%clk 0:01:23]} 29. Nf4 {[%clk 0:01:48]}  Nf6 {[%clk 0:01:17]} 30. g5 {[%clk 0:01:47]}  Ne8 {[%clk 0:01:14]} 31. Nd5 {[%clk 0:01:47]}  b4 {[%clk 0:01:13]} 32. Ne7+ {[%clk 0:01:47]} 1-0


[Site "https://www.chess.com"]

[Event "Titled Tuesday Blitz May 24 Late 2022"]
[White "Gross, Nicholas"]
[Black "Dilanyan, Grigor"]
[WhiteFideId "30921961"]
[BlackFideId "13303570"]
[WhiteElo "1958"]
[BlackElo "2279"]
[Result "1-0"]
[Round "03"]
[TimeControl "180+1"]
[Date "2022.05.25"]
[WhiteClock "0:01:53"]
[BlackClock "0:02:05"]

1. e4 {[%clk 0:03:00]}  e5 {[%clk 0:02:59]} 2. Nf3 {[%clk 0:03:01]}  Nc6 {[%clk 0:02:59]} 3. Bc4 {[%clk 0:03:01]}  Nf6 {[%clk 0:02:59]} 4. d4 {[%clk 0:03:00]}  exd4 {[%clk 0:02:58]} 5. O-O {[%clk 0:03:00]}  Nxe4 {[%clk 0:02:58]} 6. Re1 {[%clk 0:02:59]}  d5 {[%clk 0:02:57]} 7. Bxd5 {[%clk 0:02:59]}  Qxd5 {[%clk 0:02:58]} 8. Nc3 {[%clk 0:03:00]}  Qa5 {[%clk 0:02:58]} 9. Nxe4 {[%clk 0:02:59]}  Be6 {[%clk 0:02:59]} 10. Neg5 {[%clk 0:02:55]}  O-O-O {[%clk 0:02:59]} 11. Nxe6 {[%clk 0:02:56]}  fxe6 {[%clk 0:03:00]} 12. Rxe6 {[%clk 0:02:56]}  Bd6 {[%clk 0:03:00]} 13. Bg5 {[%clk 0:02:55]}  Rde8 {[%clk 0:03:01]} 14. Qe2 {[%clk 0:02:55]}  Kd7 {[%clk 0:03:02]} 15. Rxe8 {[%clk 0:02:53]}  Rxe8 {[%clk 0:03:00]} 16. Qd3 {[%clk 0:02:54]}  h6 {[%clk 0:02:59]} 17. Bd2 {[%clk 0:02:50]}  Qh5 {[%clk 0:02:58]} 18. g3 {[%clk 0:02:45]}  Ne5 {[%clk 0:02:48]} 19. Nxe5+ {[%clk 0:02:42]}  Qxe5 {[%clk 0:02:48]} 20. Re1 {[%clk 0:02:36]}  Qd5 {[%clk 0:02:42]} 21. Rxe8 {[%clk 0:02:27]}  Kxe8 {[%clk 0:02:43]} 22. Qg6+ {[%clk 0:02:27]}  Kf8 {[%clk 0:02:42]} 23. b3 {[%clk 0:02:26]}  b6 {[%clk 0:02:33]} 24. a4 {[%clk 0:02:26]}  a5 {[%clk 0:02:33]} 25. h4 {[%clk 0:02:24]}  Qe5 {[%clk 0:02:32]} 26. Qd3 {[%clk 0:02:21]}  Ke7 {[%clk 0:02:30]} 27. Qg6 {[%clk 0:02:08]}  Kf8 {[%clk 0:02:21]} 28. Qg4 {[%clk 0:02:06]}  Kf7 {[%clk 0:02:16]} 29. h5 {[%clk 0:02:04]}  Qf6 {[%clk 0:02:12]} 30. Qe4 {[%clk 0:02:00]}  Be5 {[%clk 0:02:07]} 31. Kg2 {[%clk 0:01:59]}  Ke7 {[%clk 0:02:07]} 32. f4 {[%clk 0:01:53]}  Kd6 {[%clk 0:02:05]} 33. fxe5+ {[%clk 0:01:52]}  Qxe5 {[%clk 0:02:05]} 34. Bf4 {[%clk 0:01:53]} 1-0


[Site "https://www.chess.com"]

[Event "Titled Tuesday Blitz May 24 Late 2022"]
[White "Haas, Michael"]
[Black "Lehtosaari, Mauri"]
[WhiteFideId "1629514"]
[BlackFideId "501999"]
[WhiteElo "1982"]
[BlackElo "2489"]
[Result "0-1"]
[Round "03"]
[TimeControl "180+1"]
[Date "2022.05.25"]
[WhiteClock "0:00:26"]
[BlackClock "0:01:09"]

1. d4 {[%clk 0:02:57]}  d5 {[%clk 0:02:59]} 2. c4 {[%clk 0:02:57]}  c6 {[%clk 0:02:59]} 3. Nf3 {[%clk 0:02:56]}  Nf6 {[%clk 0:03:00]} 4. g3 {[%clk 0:02:56]}  Bf5 {[%clk 0:02:57]} 5. Nc3 {[%clk 0:02:48]}  e6 {[%clk 0:02:57]} 6. Bg2 {[%clk 0:02:38]}  Nbd7 {[%clk 0:02:57]} 7. O-O {[%clk 0:02:38]}  Be7 {[%clk 0:02:56]} 8. Nh4 {[%clk 0:02:38]}  Bg6 {[%clk 0:02:44]} 9. cxd5 {[%clk 0:02:38]}  exd5 {[%clk 0:02:41]} 10. Nxg6 {[%clk 0:02:33]}  hxg6 {[%clk 0:02:41]} 11. e4 {[%clk 0:02:34]}  dxe4 {[%clk 0:02:41]} 12. Nxe4 {[%clk 0:02:31]}  Nxe4 {[%clk 0:02:41]} 13. Bxe4 {[%clk 0:02:32]}  Nf6 {[%clk 0:02:41]} 14. Bg2 {[%clk 0:02:22]}  O-O {[%clk 0:02:39]} 15. Re1 {[%clk 0:02:13]}  Nd5 {[%clk 0:02:25]} 16. Bxd5 {[%clk 0:02:10]}  cxd5 {[%clk 0:02:26]} 17. Qb3 {[%clk 0:02:07]}  Qd7 {[%clk 0:02:23]} 18. Bf4 {[%clk 0:01:58]}  Rac8 {[%clk 0:02:10]} 19. Rac1 {[%clk 0:01:47]}  Bf6 {[%clk 0:02:03]} 20. Rxc8 {[%clk 0:01:38]}  Rxc8 {[%clk 0:02:01]} 21. Be5 {[%clk 0:01:37]}  Re8 {[%clk 0:01:48]} 22. f4 {[%clk 0:01:23]}  Qc6 {[%clk 0:01:41]} 23. Qc3 {[%clk 0:00:49]}  Qb6 {[%clk 0:01:35]} 24. Kg2 {[%clk 0:00:43]}  Qb5 {[%clk 0:01:26]} 25. b3 {[%clk 0:00:38]}  Bd8 {[%clk 0:01:18]} 26. Rd1 {[%clk 0:00:26]}  Qe2+ {[%clk 0:01:09]} 0-1


[Site "https://www.chess.com"]

[Event "Titled Tuesday Blitz May 24 Late 2022"]
[White "Huber, Benedikt"]
[Black "Yurovskykh, Oleksandr"]
[WhiteFideId "12923583"]
[BlackFideId "14134020"]
[WhiteElo "1979"]
[BlackElo "2292"]
[Result "1/2-1/2"]
[Round "03"]
[TimeControl "180+1"]
[Date "2022.05.25"]
[WhiteClock "0:00:04"]
[BlackClock "0:00:10"]

1. d4 {[%clk 0:02:54]}  Nf6 {[%clk 0:02:59]} 2. c4 {[%clk 0:02:50]}  c5 {[%clk 0:02:59]} 3. d5 {[%clk 0:02:50]}  e5 {[%clk 0:02:59]} 4. Nc3 {[%clk 0:02:44]}  d6 {[%clk 0:02:59]} 5. e4 {[%clk 0:02:44]}  Nbd7 {[%clk 0:02:58]} 6. Nf3 {[%clk 0:02:42]}  Be7 {[%clk 0:02:56]} 7. Be2 {[%clk 0:02:41]}  O-O {[%clk 0:02:56]} 8. O-O {[%clk 0:02:41]}  Ne8 {[%clk 0:02:53]} 9. a3 {[%clk 0:02:36]}  g6 {[%clk 0:02:53]} 10. Bh6 {[%clk 0:02:34]}  Ng7 {[%clk 0:02:53]} 11. b4 {[%clk 0:02:31]}  b6 {[%clk 0:02:53]} 12. Nd2 {[%clk 0:02:28]}  Bg5 {[%clk 0:02:52]} 13. Bxg5 {[%clk 0:02:24]}  Qxg5 {[%clk 0:02:53]} 14. Nb3 {[%clk 0:02:12]}  f5 {[%clk 0:02:51]} 15. Qd2 {[%clk 0:02:13]}  Qxd2 {[%clk 0:02:25]} 16. Nxd2 {[%clk 0:02:13]}  Ne8 {[%clk 0:02:03]} 17. b5 {[%clk 0:02:05]}  Nef6 {[%clk 0:01:59]} 18. f3 {[%clk 0:02:04]}  a5 {[%clk 0:01:51]} 19. bxa6 {[%clk 0:02:04]}  Bxa6 {[%clk 0:01:45]} 20. Rfb1 {[%clk 0:02:04]}  Ra7 {[%clk 0:01:39]} 21. Nb5 {[%clk 0:01:54]}  Bxb5 {[%clk 0:01:38]} 22. cxb5 {[%clk 0:01:51]}  fxe4 {[%clk 0:01:25]} 23. fxe4 {[%clk 0:01:50]}  Kf7 {[%clk 0:01:26]} 24. Bd3 {[%clk 0:01:44]}  Ke7 {[%clk 0:01:26]} 25. Nc4 {[%clk 0:01:40]}  Ne8 {[%clk 0:01:20]} 26. a4 {[%clk 0:01:36]}  Nef6 {[%clk 0:01:16]} 27. a5 {[%clk 0:01:34]}  bxa5 {[%clk 0:01:17]} 28. b6 {[%clk 0:01:27]}  Rb7 {[%clk 0:01:13]} 29. Rxa5 {[%clk 0:01:08]}  Rfb8 {[%clk 0:01:13]} 30. Rab5 {[%clk 0:00:55]}  Ra8 {[%clk 0:01:13]} 31. Na5 {[%clk 0:00:53]}  Rxa5 {[%clk 0:01:01]} 32. Rxa5 {[%clk 0:00:54]}  Rxb6 {[%clk 0:01:01]} 33. Rxb6 {[%clk 0:00:50]}  Nxb6 {[%clk 0:01:02]} 34. Ra7+ {[%clk 0:00:49]}  Kf8 {[%clk 0:00:54]} 35. Ra6 {[%clk 0:00:35]}  c4 {[%clk 0:00:54]} 36. Bc2 {[%clk 0:00:28]}  Nfd7 {[%clk 0:00:41]} 37. Ba4 {[%clk 0:00:20]}  c3 {[%clk 0:00:38]} 38. Bxd7 {[%clk 0:00:19]}  c2 {[%clk 0:00:38]} 39. Ra1 {[%clk 0:00:18]}  Nxd7 {[%clk 0:00:39]} 40. Rc1 {[%clk 0:00:18]}  Nc5 {[%clk 0:00:40]} 41. Rxc2 {[%clk 0:00:18]}  Nxe4 {[%clk 0:00:40]} 42. Rc7 {[%clk 0:00:18]}  Nf6 {[%clk 0:00:39]} 43. h3 {[%clk 0:00:18]}  h6 {[%clk 0:00:38]} 44. g4 {[%clk 0:00:18]}  Ke8 {[%clk 0:00:35]} 45. Rg7 {[%clk 0:00:17]}  Nxd5 {[%clk 0:00:34]} 46. Rxg6 {[%clk 0:00:18]}  Nf4 {[%clk 0:00:31]} 47. Rxd6 {[%clk 0:00:17]}  Nxh3+ {[%clk 0:00:31]} 48. Kh2 {[%clk 0:00:18]}  Nf2 {[%clk 0:00:31]} 49. Rg6 {[%clk 0:00:15]}  Kf7 {[%clk 0:00:30]} 50. Ra6 {[%clk 0:00:13]}  Nxg4+ {[%clk 0:00:30]} 51. Kg3 {[%clk 0:00:14]}  h5 {[%clk 0:00:30]} 52. Kh4 {[%clk 0:00:14]}  Nf6 {[%clk 0:00:18]} 53. Kg5 {[%clk 0:00:14]}  Ne4+ {[%clk 0:00:19]} 54. Kxh5 {[%clk 0:00:14]}  Nf6+ {[%clk 0:00:17]} 55. Kg5 {[%clk 0:00:14]}  Ne4+ {[%clk 0:00:18]} 56. Kf5 {[%clk 0:00:15]}  Nc5 {[%clk 0:00:18]} 57. Ra7+ {[%clk 0:00:15]}  Ke8 {[%clk 0:00:15]} 58. Kxe5 {[%clk 0:00:15]}  Nd3+ {[%clk 0:00:14]} 59. Ke6 {[%clk 0:00:15]}  Nc5+ {[%clk 0:00:14]} 60. Kd6 {[%clk 0:00:15]}  Ne4+ {[%clk 0:00:15]} 61. Ke6 {[%clk 0:00:15]}  Ng5+ {[%clk 0:00:15]} 62. Kf6 {[%clk 0:00:15]}  Ne4+ {[%clk 0:00:15]} 63. Ke5 {[%clk 0:00:16]}  Nc5 {[%clk 0:00:15]} 64. Rc7 {[%clk 0:00:13]}  Nd3+ {[%clk 0:00:14]} 65. Kf5 {[%clk 0:00:12]}  Kd8 {[%clk 0:00:14]} 66. Rc4 {[%clk 0:00:11]}  Ke7 {[%clk 0:00:12]} 67. Ke4 {[%clk 0:00:11]}  Nf2+ {[%clk 0:00:10]} 68. Kf3 {[%clk 0:00:10]}  Nd3 {[%clk 0:00:09]} 69. Ke3 {[%clk 0:00:08]}  Ne5 {[%clk 0:00:10]} 70. Re4 {[%clk 0:00:09]}  Kd6 {[%clk 0:00:10]} 71. Kd4 {[%clk 0:00:09]}  Nf3+ {[%clk 0:00:10]} 72. Ke3 {[%clk 0:00:09]}  Ne5 {[%clk 0:00:10]} 73. Rh4 {[%clk 0:00:10]}  Nc6 {[%clk 0:00:10]} 74. Rh6+ {[%clk 0:00:10]}  Kc5 {[%clk 0:00:11]} 75. Ke4 {[%clk 0:00:10]}  Nb4 {[%clk 0:00:10]} 76. Rh8 {[%clk 0:00:10]}  Nc6 {[%clk 0:00:10]} 77. Rc8 {[%clk 0:00:10]}  Kd6 {[%clk 0:00:10]} 78. Rh8 {[%clk 0:00:09]}  Kc5 {[%clk 0:00:11]} 79. Rh1 {[%clk 0:00:08]}  Kd6 {[%clk 0:00:11]} 80. Rc1 {[%clk 0:00:07]}  Ne7 {[%clk 0:00:10]} 81. Kf4 {[%clk 0:00:07]}  Nd5+ {[%clk 0:00:10]} 82. Kf5 {[%clk 0:00:07]}  Ne7+ {[%clk 0:00:11]} 83. Kf6 {[%clk 0:00:08]}  Nd5+ {[%clk 0:00:12]} 84. Kf7 {[%clk 0:00:08]}  Ke5 {[%clk 0:00:12]} 85. Re1+ {[%clk 0:00:07]}  Kd6 {[%clk 0:00:12]} 86. Rd1 {[%clk 0:00:08]}  Ke5 {[%clk 0:00:12]} 87. Ke8 {[%clk 0:00:08]}  Ne3 {[%clk 0:00:12]} 88. Re1 {[%clk 0:00:07]}  Kd4 {[%clk 0:00:13]} 89. Kd7 {[%clk 0:00:07]}  Nc4 {[%clk 0:00:12]} 90. Ke6 {[%clk 0:00:07]}  Kc5 {[%clk 0:00:12]} 91. Rc1 {[%clk 0:00:07]}  Kd4 {[%clk 0:00:13]} 92. Kf5 {[%clk 0:00:07]}  Kd5 {[%clk 0:00:13]} 93. Rd1+ {[%clk 0:00:06]}  Kc5 {[%clk 0:00:13]} 94. Ke4 {[%clk 0:00:05]}  Nd6+ {[%clk 0:00:13]} 95. Kd3 {[%clk 0:00:05]}  Kd5 {[%clk 0:00:13]} 96. Ra1 {[%clk 0:00:05]}  Ke5 {[%clk 0:00:09]} 97. Ra5+ {[%clk 0:00:05]}  Ke6 {[%clk 0:00:09]} 98. Kd4 {[%clk 0:00:05]}  Nf5+ {[%clk 0:00:09]} 99. Kc5 {[%clk 0:00:06]}  Ke5 {[%clk 0:00:09]} 100. Ra1 {[%clk 0:00:06]}  Ne3 {[%clk 0:00:09]} 101. Re1 {[%clk 0:00:02]}  Ke4 {[%clk 0:00:09]} 102. Re2 {[%clk 0:00:03]}  Kd3 {[%clk 0:00:10]} 103. Rh2 {[%clk 0:00:03]}  Nc2 {[%clk 0:00:10]} 104. Rh3+ {[%clk 0:00:03]}  Kd2 {[%clk 0:00:11]} 105. Kc4 {[%clk 0:00:03]}  Ne3+ {[%clk 0:00:11]} 106. Kb3 {[%clk 0:00:04]}  Kd3 {[%clk 0:00:11]} 107. Rg3 {[%clk 0:00:04]}  Kd4 {[%clk 0:00:10]} 108. Rxe3 {[%clk 0:00:04]}  Kxe3 {[%clk 0:00:10]} 1/2-1/2


[Site "https://www.chess.com"]

[Event "Titled Tuesday Blitz May 24 Late 2022"]
[White "Jarocka, Liwia"]
[Black "Clawitter, Craig"]
[WhiteFideId "21807558"]
[BlackFideId "2023105"]
[WhiteElo "1887"]
[BlackElo "2204"]
[Result "0-1"]
[Round "03"]
[TimeControl "180+1"]
[Date "2022.05.25"]
[WhiteClock "0:01:32"]
[BlackClock "0:01:04"]

1. Nf3 {[%clk 0:03:00]}  Nf6 {[%clk 0:02:58]} 2. d4 {[%clk 0:02:56]}  e6 {[%clk 0:02:59]} 3. c4 {[%clk 0:02:56]}  d5 {[%clk 0:02:59]} 4. Nc3 {[%clk 0:02:55]}  c6 {[%clk 0:02:58]} 5. Bg5 {[%clk 0:02:55]}  h6 {[%clk 0:02:58]} 6. Bh4 {[%clk 0:02:55]}  dxc4 {[%clk 0:02:57]} 7. e4 {[%clk 0:02:53]}  g5 {[%clk 0:02:58]} 8. Bg3 {[%clk 0:02:53]}  b5 {[%clk 0:02:58]} 9. e5 {[%clk 0:02:44]}  Nd5 {[%clk 0:02:58]} 10. Ne4 {[%clk 0:02:44]}  Nd7 {[%clk 0:02:54]} 11. h4 {[%clk 0:02:37]}  g4 {[%clk 0:02:52]} 12. Nfd2 {[%clk 0:02:35]}  h5 {[%clk 0:02:49]} 13. Be2 {[%clk 0:02:35]}  Bb7 {[%clk 0:02:40]} 14. O-O {[%clk 0:02:31]}  c5 {[%clk 0:02:35]} 15. b3 {[%clk 0:02:12]}  c3 {[%clk 0:02:17]} 16. Nb1 {[%clk 0:02:12]}  cxd4 {[%clk 0:01:37]} 17. Bxb5 {[%clk 0:01:58]}  Qb6 {[%clk 0:01:35]} 18. a4 {[%clk 0:01:46]}  a6 {[%clk 0:01:33]} 19. Bxd7+ {[%clk 0:01:46]}  Kxd7 {[%clk 0:01:33]} 20. Na3 {[%clk 0:01:46]}  Bxa3 {[%clk 0:01:15]} 21. Rxa3 {[%clk 0:01:47]}  Ke7 {[%clk 0:01:12]} 22. Qd3 {[%clk 0:01:44]}  Nb4 {[%clk 0:01:05]} 23. Qd1 {[%clk 0:01:32]}  Bxe4 {[%clk 0:01:04]} 0-1


[Site "https://www.chess.com"]

[Event "Titled Tuesday Blitz May 24 Late 2022"]
[White "Korchmar, Vasiliy"]
[Black "Krallis, Christos"]
[WhiteFideId "24131750"]
[BlackFideId "4298896"]
[WhiteElo "2370"]
[BlackElo "2234"]
[Result "1-0"]
[Round "03"]
[TimeControl "180+1"]
[Date "2022.05.25"]
[WhiteClock "0:00:08"]
[BlackClock "0:00:06"]

1. e4 {[%clk 0:03:00]}  e5 {[%clk 0:02:52]} 2. Nf3 {[%clk 0:03:00]}  Nc6 {[%clk 0:02:52]} 3. Nc3 {[%clk 0:03:00]}  Nf6 {[%clk 0:02:51]} 4. h3 {[%clk 0:03:01]}  Bb4 {[%clk 0:02:49]} 5. Nd5 {[%clk 0:03:01]}  Bc5 {[%clk 0:02:48]} 6. c3 {[%clk 0:02:58]}  d6 {[%clk 0:02:47]} 7. d4 {[%clk 0:02:56]}  exd4 {[%clk 0:02:37]} 8. cxd4 {[%clk 0:02:50]}  Bb6 {[%clk 0:02:28]} 9. Bg5 {[%clk 0:02:45]}  Ba5+ {[%clk 0:02:28]} 10. Nd2 {[%clk 0:02:37]}  Nxe4 {[%clk 0:01:59]} 11. Bxd8 {[%clk 0:02:23]}  Bxd2+ {[%clk 0:01:59]} 12. Ke2 {[%clk 0:02:07]}  Nxd4+ {[%clk 0:01:59]} 13. Kd3 {[%clk 0:02:07]}  Nxf2+ {[%clk 0:01:59]} 14. Kxd4 {[%clk 0:02:05]}  Nxd1 {[%clk 0:01:56]} 15. Rxd1 {[%clk 0:02:04]}  Kxd8 {[%clk 0:01:41]} 16. Rxd2 {[%clk 0:02:03]}  c6 {[%clk 0:01:38]} 17. Nc3 {[%clk 0:01:52]}  d5 {[%clk 0:01:38]} 18. Bd3 {[%clk 0:01:47]}  Be6 {[%clk 0:01:38]} 19. Ne2 {[%clk 0:01:33]}  Ke7 {[%clk 0:01:32]} 20. Nf4 {[%clk 0:01:32]}  Kd6 {[%clk 0:01:27]} 21. b4 {[%clk 0:01:29]}  a5 {[%clk 0:01:21]} 22. b5 {[%clk 0:01:24]}  c5+ {[%clk 0:01:20]} 23. Kc3 {[%clk 0:01:25]}  d4+ {[%clk 0:01:13]} 24. Kb2 {[%clk 0:01:24]}  c4 {[%clk 0:01:12]} 25. Nxe6 {[%clk 0:00:58]}  c3+ {[%clk 0:01:00]} 26. Kc2 {[%clk 0:00:58]}  cxd2 {[%clk 0:00:59]} 27. Nxg7 {[%clk 0:00:55]}  Rag8 {[%clk 0:00:41]} 28. Nf5+ {[%clk 0:00:55]}  Kc5 {[%clk 0:00:32]} 29. g3 {[%clk 0:00:39]}  h5 {[%clk 0:00:28]} 30. h4 {[%clk 0:00:40]}  Rd8 {[%clk 0:00:17]} 31. Kxd2 {[%clk 0:00:40]}  Kb6 {[%clk 0:00:17]} 32. Re1 {[%clk 0:00:36]}  Rd5 {[%clk 0:00:15]} 33. Re7 {[%clk 0:00:30]}  a4 {[%clk 0:00:11]} 34. Rxf7 {[%clk 0:00:29]}  Rhd8 {[%clk 0:00:10]} 35. Rh7 {[%clk 0:00:20]}  R8d7 {[%clk 0:00:10]} 36. Rxh5 {[%clk 0:00:20]}  Kc5 {[%clk 0:00:11]} 37. Rh8 {[%clk 0:00:18]}  Kb4 {[%clk 0:00:11]} 38. h5 {[%clk 0:00:16]}  Ka3 {[%clk 0:00:12]} 39. Ra8 {[%clk 0:00:16]}  Re5 {[%clk 0:00:07]} 40. h6 {[%clk 0:00:15]}  Rh7 {[%clk 0:00:06]} 41. g4 {[%clk 0:00:12]}  Kxa2 {[%clk 0:00:04]} 42. Rxa4+ {[%clk 0:00:10]}  Kb3 {[%clk 0:00:05]} 43. Rxd4 {[%clk 0:00:11]}  Ka3 {[%clk 0:00:03]} 44. g5 {[%clk 0:00:11]}  Rc5 {[%clk 0:00:02]} 45. g6 {[%clk 0:00:11]}  Rxh6 {[%clk 0:00:03]} 46. Nxh6 {[%clk 0:00:11]}  Rg5 {[%clk 0:00:04]} 47. Rd7 {[%clk 0:00:10]}  Rg2+ {[%clk 0:00:05]} 48. Kc3 {[%clk 0:00:09]}  Rg1 {[%clk 0:00:04]} 49. Rxb7 {[%clk 0:00:08]}  Rc1+ {[%clk 0:00:05]} 50. Kd4 {[%clk 0:00:09]}  Rg1 {[%clk 0:00:06]} 51. g7 {[%clk 0:00:08]} 1-0


[Site "https://www.chess.com"]

[Event "Titled Tuesday Blitz May 24 Late 2022"]
[White "Lutz, Igor Oscar"]
[Black "Diaz Rosas, Julio Cesar"]
[WhiteFideId "2110806"]
[BlackFideId "5105099"]
[WhiteElo "1741"]
[BlackElo "2278"]
[Result "0-1"]
[Round "03"]
[TimeControl "180+1"]
[Date "2022.05.25"]
[WhiteClock "0:00:29"]
[BlackClock "0:01:22"]

1. d4 {[%clk 0:03:00]}  d5 {[%clk 0:02:56]} 2. c4 {[%clk 0:03:00]}  e6 {[%clk 0:02:57]} 3. Nf3 {[%clk 0:03:00]}  a6 {[%clk 0:02:57]} 4. g3 {[%clk 0:03:00]}  dxc4 {[%clk 0:02:56]} 5. Bg2 {[%clk 0:03:00]}  Bb4+ {[%clk 0:02:55]} 6. Bd2 {[%clk 0:03:00]}  c5 {[%clk 0:02:53]} 7. dxc5 {[%clk 0:02:51]}  Bxc5 {[%clk 0:02:51]} 8. O-O {[%clk 0:02:49]}  Nc6 {[%clk 0:02:51]} 9. Qc2 {[%clk 0:02:49]}  Nf6 {[%clk 0:02:44]} 10. Qxc4 {[%clk 0:02:48]}  Qe7 {[%clk 0:02:42]} 11. Bg5 {[%clk 0:02:35]}  Ba7 {[%clk 0:02:37]} 12. e4 {[%clk 0:02:23]}  h6 {[%clk 0:02:33]} 13. Bd2 {[%clk 0:02:12]}  O-O {[%clk 0:02:22]} 14. Nc3 {[%clk 0:02:11]}  Rd8 {[%clk 0:02:20]} 15. Rfd1 {[%clk 0:02:05]}  Bd7 {[%clk 0:02:17]} 16. Qe2 {[%clk 0:02:03]}  Be8 {[%clk 0:02:07]} 17. h3 {[%clk 0:02:02]}  Nd7 {[%clk 0:02:06]} 18. Rac1 {[%clk 0:02:00]}  Nde5 {[%clk 0:02:06]} 19. Be3 {[%clk 0:01:51]}  Bxe3 {[%clk 0:02:01]} 20. Qxe3 {[%clk 0:01:50]}  Nc4 {[%clk 0:02:01]} 21. Qe2 {[%clk 0:01:46]}  N6e5 {[%clk 0:01:57]} 22. Nxe5 {[%clk 0:01:44]}  Nxe5 {[%clk 0:01:57]} 23. f4 {[%clk 0:01:37]}  Nc6 {[%clk 0:01:57]} 24. e5 {[%clk 0:01:35]}  Nd4 {[%clk 0:01:55]} 25. Qe3 {[%clk 0:01:29]}  Qc5 {[%clk 0:01:50]} 26. Kh2 {[%clk 0:01:22]}  Qb4 {[%clk 0:01:47]} 27. Rd2 {[%clk 0:01:05]}  Nf5 {[%clk 0:01:44]} 28. Qf2 {[%clk 0:01:00]}  Bc6 {[%clk 0:01:41]} 29. Bxc6 {[%clk 0:00:58]}  bxc6 {[%clk 0:01:42]} 30. Rcd1 {[%clk 0:00:58]}  Rxd2 {[%clk 0:01:39]} 31. Rxd2 {[%clk 0:00:57]}  Ne7 {[%clk 0:01:40]} 32. Qf3 {[%clk 0:00:51]}  Nd5 {[%clk 0:01:36]} 33. Ne4 {[%clk 0:00:46]}  a5 {[%clk 0:01:32]} 34. Qf2 {[%clk 0:00:40]}  Qxe4 {[%clk 0:01:30]} 35. Rc2 {[%clk 0:00:38]}  Rd8 {[%clk 0:01:26]} 36. Rxc6 {[%clk 0:00:37]}  Ne3 {[%clk 0:01:26]} 37. Qe2 {[%clk 0:00:29]}  Qxc6 {[%clk 0:01:22]} 0-1


[Site "https://www.chess.com"]

[Event "Titled Tuesday Blitz May 24 Late 2022"]
[White "Makarian, Rudik"]
[Black "Gurevich, Dmitry"]
[WhiteFideId "44105681"]
[BlackFideId "2000407"]
[WhiteElo "2419"]
[BlackElo "2506"]
[Result "1-0"]
[Round "03"]
[TimeControl "180+1"]
[Date "2022.05.24"]
[WhiteClock "0:00:04"]
[BlackClock "0:00:08"]

1. d3 {[%clk 0:02:20]}  d5 {[%clk 0:02:57]} 2. f4 {[%clk 0:02:17]}  Nf6 {[%clk 0:02:54]} 3. Nf3 {[%clk 0:02:16]}  Bf5 {[%clk 0:02:52]} 4. g3 {[%clk 0:02:15]}  e6 {[%clk 0:02:51]} 5. Bg2 {[%clk 0:02:16]}  h6 {[%clk 0:02:48]} 6. O-O {[%clk 0:02:16]}  Bc5+ {[%clk 0:02:47]} 7. Kh1 {[%clk 0:02:14]}  O-O {[%clk 0:02:41]} 8. Qe1 {[%clk 0:02:06]}  Nc6 {[%clk 0:02:37]} 9. c3 {[%clk 0:02:02]}  a5 {[%clk 0:02:34]} 10. Nbd2 {[%clk 0:02:00]}  Bh7 {[%clk 0:02:27]} 11. a4 {[%clk 0:01:48]}  Bb6 {[%clk 0:02:20]} 12. d4 {[%clk 0:01:47]}  Ne7 {[%clk 0:02:16]} 13. Ne5 {[%clk 0:01:46]}  Nf5 {[%clk 0:02:14]} 14. e4 {[%clk 0:01:35]}  Nd6 {[%clk 0:02:09]} 15. exd5 {[%clk 0:01:21]}  exd5 {[%clk 0:02:08]} 16. g4 {[%clk 0:01:21]}  c5 {[%clk 0:02:03]} 17. dxc5 {[%clk 0:01:18]}  Bxc5 {[%clk 0:02:02]} 18. Nb3 {[%clk 0:01:17]}  Bb6 {[%clk 0:02:01]} 19. Be3 {[%clk 0:01:16]}  Nfe4 {[%clk 0:01:50]} 20. f5 {[%clk 0:01:03]}  Re8 {[%clk 0:01:41]} 21. Bd4 {[%clk 0:01:03]}  f6 {[%clk 0:01:35]} 22. Nf3 {[%clk 0:01:00]}  Nc4 {[%clk 0:01:28]} 23. Qc1 {[%clk 0:00:55]}  Kh8 {[%clk 0:01:22]} 24. Ra2 {[%clk 0:00:44]}  Bg8 {[%clk 0:01:17]} 25. Bxb6 {[%clk 0:00:44]}  Qxb6 {[%clk 0:01:16]} 26. Nbd4 {[%clk 0:00:45]}  Nc5 {[%clk 0:01:11]} 27. b3 {[%clk 0:00:18]}  Ne3 {[%clk 0:00:58]} 28. Rg1 {[%clk 0:00:13]}  Nd3 {[%clk 0:00:51]} 29. Qd2 {[%clk 0:00:12]}  Nf4 {[%clk 0:00:51]} 30. Bf1 {[%clk 0:00:11]}  Re4 {[%clk 0:00:48]} 31. Bd3 {[%clk 0:00:11]}  Re7 {[%clk 0:00:44]} 32. Qf2 {[%clk 0:00:10]}  Rae8 {[%clk 0:00:42]} 33. Bf1 {[%clk 0:00:09]}  Nd1 {[%clk 0:00:36]} 34. Qd2 {[%clk 0:00:08]}  Ne3 {[%clk 0:00:36]} 35. Bb5 {[%clk 0:00:08]}  h5 {[%clk 0:00:14]} 36. Bxe8 {[%clk 0:00:07]}  Rxe8 {[%clk 0:00:13]} 37. g5 {[%clk 0:00:07]}  Qd6 {[%clk 0:00:12]} 38. Nh4 {[%clk 0:00:07]}  Bf7 {[%clk 0:00:10]} 39. g6 {[%clk 0:00:07]}  Bg8 {[%clk 0:00:10]} 40. Qf2 {[%clk 0:00:06]}  Qe5 {[%clk 0:00:10]} 41. Qf3 {[%clk 0:00:06]}  Ng4 {[%clk 0:00:09]} 42. h3 {[%clk 0:00:05]}  Ne3 {[%clk 0:00:09]} 43. Rf2 {[%clk 0:00:04]}  Nd3 {[%clk 0:00:08]} 44. Qxh5+ {[%clk 0:00:04]} 1-0


[Site "https://www.chess.com"]